bitfinex/quotes_SOLUSD_20260304
["timestamp","ask_amount","ask_price","bid_price","bid_amount"]
[1772647337040,10.91998858,91.576,91.504,1.79143511]
[1772647337240,10.92042017,91.572,91.504,1.79143511]
[1772647337538,1.81346514,91.568,91.504,1.79143511]
[1772647338756,1.81801349,91.566,91.506,1.85748767]
[1772647342042,1.81801349,91.564,91.508,1.85748767]
[1772647343841,1.81801349,91.562,91.51,1.85748767]
[1772647345546,1.89409563,91.559,91.51,1.85748767]
[1772647346347,1.89409563,91.557,91.512,1.8490686]
[1772647348352,1.89409563,91.555,91.492,1.8490686]
[1772647350452,54.61019244,91.558,91.488,27.32576262]
[1772647350453,1.89409563,91.553,91.494,1.8490686]
[1772647352861,1.89409563,91.551,91.496,1.8490686]
[1772647353031,6.88022359,91.57,91.503,1.8490686]
[1772647353229,6.88022359,91.57,91.498,3.69383402]
[1772647353230,1.89409563,91.588,91.514,1.8490686]
[1772647353854,1.89409563,91.607,91.524,1.8490686]
[1772647354043,1.89409563,91.606,91.524,1.8490686]
[1772647354744,1.89409563,91.604,91.526,1.8490686]
[1772647355050,1.89409563,91.604,91.525,92.87080031]
[1772647355051,1.89409563,91.604,91.529,1.8490686]
[1772647357151,1.89409563,91.602,91.534,1.8490686]
[1772647357744,1.89409563,91.618,91.534,1.8490686]
[1772647358146,1.89409563,91.617,91.534,1.8490686]
[1772647358347,1.89409563,91.617,91.544,1.8490686]
[1772647358650,1.89409563,91.617,91.545,2.13339174]
[1772647358860,6.92906265,91.619,91.545,2.13339174]
[1772647359254,6.92906265,91.619,91.55,2.13339174]
[1772647360160,6.92906265,91.619,91.555,1.8490686]
[1772647361841,1.89409563,91.618,91.555,1.8490686]
[1772647362253,1.89409563,91.618,91.556,136.52846344]
[1772647362553,1.89409563,91.618,91.56,1.8490686]
[1772647364371,1.89409563,91.618,91.562,1.8490686]
[1772647365539,1.89409563,91.627,91.565,1.8490686]
[1772647365852,1.89409563,91.65,91.574,1.8490686]
[1772647366364,1.89409563,91.65,91.573,3.69383402]
[1772647366365,1.89409563,91.647,91.579,1.8490686]
[1772647367855,1.89409563,91.645,91.584,1.8490686]
[1772647368457,10.91155096,91.646,91.58,38.2179515]
[1772647368458,2.03943237,91.629,91.58,10.91941471]
[1772647368838,2.03943237,91.629,91.58,12.80398753]
[1772647369041,2.03943237,91.629,91.581,1.88457282]
[1772647370458,2.03943237,91.629,91.547,7.9]
[1772647370459,2.03943237,91.627,91.569,1.88457282]
[1772647372361,2.03943237,91.617,91.565,10.92120351]
[1772647372541,2.03943237,91.617,91.524,87.4085966]
[1772647372542,2.03943237,91.609,91.556,10.92227707]
[1772647372941,2.03943237,91.609,91.556,12.80684989]
[1772647373138,2.03943237,91.609,91.556,1.88457282]
[1772647373349,2.03943237,91.599,91.533,1.88457282]
[1772647374444,2.03943237,91.597,91.539,1.88457282]
[1772647375754,30.0,91.584,91.539,1.88457282]
[1772647375950,2.03943237,91.597,91.539,0.20621472]
[1772647376763,2.03943237,91.605,91.544,0.20884277]
[1772647380549,2.03943237,91.603,91.549,0.21905655]
[1772647382550,2.03943237,91.603,91.558,3.69383402]
[1772647382755,2.03943237,91.603,91.563,0.21998267]
[1772647383468,4.12341121,91.63,91.562,3.69383402]
[1772647383469,2.03943237,91.61,91.567,3.69383402]
[1772647383647,2.03943237,91.638,91.568,0.22043776]
[1772647384247,2.03943237,91.638,91.572,0.22088763]
[1772647384453,2.03943237,91.638,91.574,0.22088763]
[1772647384653,2.03943237,91.638,91.579,0.22088763]
[1772647384851,2.03943237,91.638,91.581,0.22088763]
[1772647386180,2.03943237,91.636,91.581,0.22088763]
[1772647387076,2.03943237,91.634,91.582,38.21711689]
[1772647387579,2.03943237,91.629,91.582,10.91917625]
[1772647388787,2.03943237,91.619,91.572,10.92036867]
[1772647389161,2.03943237,91.617,91.56,27.30423863]
[1772647389373,38.20210002,91.618,91.56,27.30423863]
[1772647389374,2.03943237,91.609,91.56,27.30423863]
[1772647389572,38.20210002,91.618,91.556,10.92227707]
[1772647389573,2.03943237,91.599,91.556,10.92227707]
[1772647391982,2.03943237,91.597,91.542,0.22389531]
[1772647392479,2.03943237,91.597,91.538,38.23548689]
[1772647392679,2.03943237,91.559,91.516,10.92699309]
[1772647393806,8.83074413,91.56,91.496,0.22430546]
[1772647393807,2.03943237,91.557,91.504,27.32096269]
[1772647394370,2.03943237,91.549,91.497,10.92932008]
[1772647394676,2.03943237,91.539,91.489,10.93027577]
[1772647395887,2.03943237,91.527,91.481,0.60670257]
[1772647396181,2.03943237,91.527,91.481,11.53792121]
[1772647397090,2.03943237,91.525,91.481,11.53792121]
[1772647397279,2.03943237,91.525,91.481,38.86600026]
[1772647397981,10.92609588,91.524,91.481,38.86600026]
[1772647398186,2.03943237,91.523,91.481,40.5666058]
[1772647398390,2.03943237,91.523,91.482,1.70961258]
[1772647398586,2.03943237,91.523,91.481,11.53792121]
[1772647400068,30.0,91.526,91.481,0.60670257]
[1772647400069,1.89366081,91.521,91.481,0.60670257]
[1772647400268,1.89366081,91.519,91.481,0.60670257]
[1772647400995,1.89366081,91.519,91.482,10.93111213]
[1772647402184,1.89366081,91.517,91.482,10.93111213]
[1772647402786,1.89366081,91.517,91.481,0.60670257]
[1772647403372,1.89366081,91.509,91.459,10.93378676]
[1772647403676,1.89366081,91.509,91.462,2.02975169]
[1772647404292,10.92800629,91.508,91.463,38.26684013]
[1772647404497,1.89366081,91.507,91.464,2.02975169]
[1772647405598,1.89366081,91.507,91.463,10.93338289]
[1772647405897,1.89366081,91.507,91.461,10.93362198]
[1772647406401,1.98677757,91.505,91.461,10.93362198]
[1772647406795,1.98677757,91.503,91.461,10.93362198]
[1772647407193,1.98677757,91.503,91.446,1.97169027]
[1772647407500,1.98677757,91.489,91.44,0.1]
[1772647407694,1.98677757,91.479,91.44,0.1]
[1772647408203,30.0,91.504,91.44,0.1]
[1772647408204,1.98677757,91.469,91.44,0.1]
[1772647408402,1.98677757,91.467,91.422,10.93827738]
[1772647408894,1.98677757,91.467,91.425,10.93782413]
[1772647409297,1.98677757,91.465,91.415,1.97169027]
[1772647409685,1.98677757,91.465,91.411,27.34873434]
[1772647409999,1.98677757,91.465,91.43,11.13725326]
[1772647410698,1.98677757,91.463,91.43,11.13725326]
[1772647411091,1.98677757,91.504,91.434,1.97169027]
[1772647411296,1.98677757,91.503,91.434,1.97169027]
[1772647411898,1.98677757,91.511,91.444,1.97169027]
[1772647412194,10.92692686,91.518,91.444,1.97169027]
[1772647412398,10.92765351,91.511,91.444,1.97169027]
[1772647412573,1.98677757,91.52,91.444,1.97169027]
[1772647412902,10.92700944,91.517,91.449,1.97169027]
[1772647413804,10.92742918,91.513,91.449,1.97169027]
[1772647414703,10.92742918,91.513,91.454,1.97169027]
[1772647415379,1.98677757,91.512,91.454,1.97169027]
[1772647416319,0.54672101,91.505,91.455,1.97169027]
[1772647416689,27.31146299,91.537,91.459,3.69383402]
[1772647416690,1.98677757,91.519,91.459,3.69383402]
[1772647416889,1.98677757,91.519,91.46,1.97169027]
[1772647417483,1.98677757,91.527,91.46,1.97169027]
[1772647419400,1.98677757,91.525,91.462,1.97169027]
[1772647421904,1.98677757,91.525,91.44,43.74427343]
[1772647421905,1.98677757,91.523,91.464,1.97169027]
[1772647424815,1.98677757,91.521,91.466,1.97169027]
[1772647425305,1.98677757,91.521,91.469,1.97169027]
[1772647425704,1.98677757,91.521,91.474,1.97169027]
[1772647428094,1.98677757,91.529,91.476,1.97169027]
[1772647428815,1.98677757,91.529,91.478,1.93928247]
[1772647429597,1.98677757,91.529,91.481,1.93928247]
[1772647429807,1.98677757,91.529,91.483,1.93928247]
[1772647430318,1.98677757,91.529,91.485,1.93928247]
[1772647430629,1.96814032,91.527,91.485,1.93928247]
[1772647434702,1.96814032,91.525,91.487,1.93928247]
[1772647437018,1.96814032,91.559,91.489,1.93928247]
[1772647437209,1.96814032,91.559,91.491,1.93928247]
[1772647437410,1.96814032,91.549,91.491,1.93928247]
[1772647437608,1.96814032,91.549,91.49,7.9]
[1772647437810,1.96814032,91.529,91.475,1.93928247]
[1772647438002,1.96814032,91.529,91.476,38.26140189]
[1772647438221,1.96814032,91.529,91.477,1.93928247]
[1772647438923,1.96814032,91.529,91.476,18.83182911]
[1772647439328,1.96814032,91.527,91.476,18.83182911]
[1772647439625,1.96814032,91.527,91.477,1.93928247]
[1772647442812,1.96814032,91.525,91.479,1.93928247]
[1772647445711,43.69212019,91.55,91.454,3.69383402]
[1772647445712,1.96814032,91.56,91.481,1.93928247]
[1772647446026,1.96814032,91.559,91.502,0.28432314]
[1772647446209,1.96814032,91.559,91.503,1.93928247]
[1772647446829,43.66540129,91.606,91.503,1.93928247]
[1772647446830,1.96814032,91.568,91.503,1.93928247]
[1772647447542,1.96814032,91.568,91.504,1.93928247]
[1772647448130,1.96814032,91.568,91.503,1.09286034]
[1772647448131,1.96814032,91.566,91.509,1.93928247]
[1772647449235,1.96814032,91.579,91.513,1.93928247]
[1772647449712,1.96814032,91.579,91.515,1.93928247]
[1772647449913,1.96814032,91.579,91.517,1.93928247]
[1772647450113,1.96814032,91.579,91.524,1.93928247]
[1772647450334,5.60613111,91.628,91.524,1.93928247]
[1772647450335,1.96814032,91.591,91.524,1.93928247]
[1772647452336,1.96814032,91.591,91.521,3.69383402]
[1772647452337,1.96814032,91.591,91.529,1.93928247]
[1772647452521,1.96814032,91.589,91.529,1.93928247]
[1772647453419,1.96814032,91.579,91.525,10.9259765]
[1772647453630,1.96814032,91.579,91.528,3.69383402]
[1772647454131,1.96814032,91.579,91.528,5.63311649]
[1772647454333,1.96814032,91.579,91.51,54.63838908]
[1772647454334,1.96814032,91.577,91.532,3.69383402]
[1772647454730,1.96814032,91.577,91.529,10.92549902]
[1772647455323,1.96814032,91.577,91.53,1.93928247]
[1772647456134,1.96814032,91.577,91.529,38.23924657]
[1772647458435,2.18023871,91.575,91.529,27.31374755]
[1772647458629,2.18023871,91.575,91.529,29.3144376]
[1772647458817,2.18023871,91.575,91.53,2.00069005]
[1772647460442,2.18023871,91.598,91.534,2.00069005]
[1772647461222,2.18023871,91.598,91.537,2.00069005]
[1772647461815,2.18023871,91.598,91.538,2.00069005]
[1772647462645,10.91738812,91.597,91.539,38.23506919]
[1772647462823,2.18023871,91.596,91.543,2.00069005]
[1772647464539,2.18023871,91.596,91.548,2.00069005]
[1772647465846,10.91511408,91.617,91.549,2.08735525]
[1772647466155,10.91511408,91.617,91.547,4.7861691]
[1772647466156,10.91511408,91.617,91.551,2.08735525]
[1772647466649,10.91511408,91.617,91.556,2.08735525]
[1772647467024,0.2,91.62,91.556,2.08735525]
[1772647467225,0.2,91.62,91.561,2.37167839]
[1772647467750,2.10976988,91.619,91.561,2.37167839]
[1772647467953,2.10976988,91.619,91.564,2.08735525]
[1772647468892,2.10976988,91.619,91.569,2.08735525]
[1772647469629,0.2,91.63,91.574,2.08735525]
[1772647470029,2.10976988,91.629,91.574,2.08735525]
[1772647470248,2.10976988,91.628,91.574,2.08735525]
[1772647470924,2.10976988,91.626,91.575,38.22003822]
[1772647471730,2.10976988,91.626,91.575,10.92001092]
[1772647471961,2.10976988,91.619,91.575,10.92001092]
[1772647472851,2.10976988,91.619,91.576,2.08735525]
[1772647473052,2.10976988,91.619,91.578,2.08735525]
[1772647473457,2.10976988,91.619,91.58,2.08735525]
[1772647474539,0.2,91.63,91.579,7.9]
[1772647474540,2.10976988,91.617,91.579,7.9]
[1772647475156,9.02407657,91.63,91.579,7.9]
[1772647475157,2.10976988,91.615,91.579,7.9]
[1772647475459,2.10976988,91.615,91.555,2.08735525]
[1772647475460,2.10976988,91.609,91.563,10.92144206]
[1772647477060,2.10976988,91.607,91.557,27.30539076]
[1772647478068,2.10976988,91.616,91.558,2.08735525]
[1772647478461,2.10976988,91.609,91.556,10.92227707]
[1772647478962,2.10976988,91.607,91.551,2.08735525]
[1772647479861,2.10976988,91.599,91.55,10.9229929]
[1772647480443,2.10976988,91.599,91.55,38.23047515]
[1772647480948,2.10976988,91.597,91.544,10.92370881]
[1772647483045,2.10976988,91.589,91.54,38.2346293]
[1772647483269,2.10976988,91.589,91.54,10.92418614]
[1772647484059,2.10976988,91.589,91.541,2.08735525]
[1772647484561,10.91357539,91.629,91.548,2.08735525]
[1772647484767,10.91357539,91.629,91.554,2.08735525]
[1772647485246,38.19751388,91.629,91.559,2.08735525]
[1772647486651,2.10976988,91.628,91.559,2.08735525]
[1772647487261,2.10976988,91.626,91.564,2.08735525]
[1772647488768,2.1517019,91.624,91.566,2.13944179]
[1772647489168,2.1517019,91.619,91.565,38.2242123]
[1772647489374,2.1517019,91.619,91.565,10.92120351]
[1772647489755,92.76944064,91.625,91.565,10.92120351]
[1772647489756,2.1517019,91.609,91.565,10.92120351]
[1772647489956,2.1517019,91.609,91.56,10.92172205]
[1772647490159,2.1517019,91.609,91.561,2.13944179]
[1772647491655,2.1517019,91.607,91.563,2.13944179]
[1772647493869,10.91631552,91.606,91.564,38.22462976]
[1772647494070,2.1517019,91.616,91.565,2.13944179]
[1772647497263,2.1517019,91.614,91.567,2.13944179]
[1772647500672,2.1517019,91.612,91.569,2.13944179]
[1772647500867,2.1517019,91.621,91.571,2.13944179]
[1772647501075,0.2,91.63,91.576,2.13944179]
[1772647501381,2.1517019,91.657,91.583,2.13944179]
[1772647501573,2.1517019,91.665,91.583,2.13944179]
[1772647502076,0.2,91.67,91.583,2.13944179]
[1772647502077,2.1517019,91.655,91.583,2.13944179]
[1772647503273,2.1517019,91.653,91.588,2.13944179]
[1772647504471,2.1517019,91.639,91.581,10.91929548]
[1772647504673,2.1517019,91.629,91.576,10.91985306]
[1772647504876,2.1517019,91.619,91.567,10.92084667]
[1772647505175,8.82407657,91.62,91.527,43.70283568]
[1772647505176,2.1517019,91.617,91.569,10.92072644]
[1772647505587,2.1517019,91.617,91.57,2.13944179]
[1772647506983,10.91406578,91.625,91.57,2.13944179]
[1772647507190,2.1517019,91.624,91.57,2.13944179]
[1772647507487,10.91429008,91.623,91.572,2.13944179]
[1772647508469,2.1517019,91.622,91.572,2.13944179]
[1772647508686,2.1517019,91.619,91.566,10.92101085]
[1772647509189,2.1517019,91.619,91.567,2.13944179]
[1772647509485,2.1517019,91.617,91.568,10.92084571]
[1772647510171,2.1517019,91.617,91.569,2.13944179]
[1772647511072,2.1517019,91.637,91.572,2.13944179]
[1772647511272,2.1517019,91.636,91.572,2.13944179]
[1772647511486,2.1517019,91.634,91.574,2.13944179]
[1772647513487,2.1517019,91.632,91.576,2.13944179]
[1772647514276,2.1517019,91.629,91.576,2.13944179]
[1772647514482,2.1517019,91.627,91.577,10.91977243]
[1772647514878,2.1517019,91.627,91.578,2.13944179]
[1772647515998,2.1517019,91.627,91.577,10.91977243]
[1772647516202,2.1517019,91.627,91.577,13.05921422]
[1772647516795,2.1517019,91.625,91.577,13.05921422]
[1772647517598,2.1517019,91.625,91.577,10.91977243]
[1772647517783,2.1517019,91.625,91.572,10.92032233]
[1772647517984,2.1517019,91.619,91.572,10.92032233]
[1772647518186,2.1517019,91.619,91.569,2.13944179]
[1772647518395,2.1517019,91.619,91.571,2.20342388]
[1772647520391,2.13317489,91.617,91.573,2.20342388]
[1772647522484,2.13317489,91.658,91.578,2.20342388]
[1772647522702,2.13317489,91.652,91.578,2.20342388]
[1772647524299,2.33317489,91.67,91.584,2.20342388]
[1772647524598,17.71623315,91.669,91.594,2.20342388]
[1772647524800,10.90928139,91.666,91.599,2.20342388]
[1772647525098,10.90928139,91.666,91.603,2.20342388]
[1772647525606,6.80740737,91.669,91.603,2.20342388]
[1772647525986,0.2,91.67,91.604,2.11350957]
[1772647526502,0.2,91.67,91.609,2.11350957]
[1772647526684,0.2,91.67,91.61,0.28432314]
[1772647526880,0.2,91.67,91.613,2.11350957]
[1772647527295,0.2,91.69,91.613,3.69383402]
[1772647527510,0.2,91.69,91.624,2.11350957]
[1772647528102,0.2,91.69,91.634,2.11350957]
[1772647528484,0.2,91.69,91.619,3.69383402]
[1772647528485,0.2,91.69,91.639,2.11350957]
[1772647529510,2.23309962,91.689,91.639,2.11350957]
[1772647529913,2.23309962,91.688,91.639,2.11350957]
[1772647530214,2.23309962,91.688,91.63,2.11350957]
[1772647531206,2.23309962,91.686,91.632,2.11350957]
[1772647531588,2.43309962,91.69,91.632,2.11350957]
[1772647532602,10.9064337,91.689,91.637,2.11350957]
[1772647533916,0.2,91.69,91.637,2.11350957]
[1772647534102,0.2,91.69,91.642,2.11350957]
[1772647534412,1e-08,91.69,91.647,2.11350957]
[1772647534594,1e-08,91.69,91.652,2.11350957]
[1772647534791,2.23309963,91.69,91.652,2.11350957]
[1772647535399,1e-08,91.69,91.652,2.11350957]
[1772647536619,1e-08,91.69,91.654,2.11350957]
[1772647538700,1e-08,91.69,91.656,2.11350957]
[1772647540614,1e-08,91.69,91.658,3.69383402]
[1772647540795,1e-08,91.69,91.663,2.11350957]
[1772647541309,1e-08,91.7,91.663,2.11350957]
[1772647542501,2.23309962,91.699,91.663,2.11350957]
[1772647542704,10.90548218,91.697,91.664,10.90940827]
[1772647543023,2.23309962,91.696,91.664,10.90940827]
[1772647543519,2.23309962,91.696,91.664,40.29643852]
[1772647543817,1e-08,91.7,91.665,2.11350957]
[1772647544198,2.23309963,91.7,91.665,2.11350957]
[1772647544421,1e-08,91.7,91.665,2.11350957]
[1772647544821,1e-08,91.7,91.667,2.11350957]
[1772647546730,1e-08,91.7,91.669,2.11350957]
[1772647548798,1e-08,91.7,91.671,2.07601933]
[1772647549419,0.2,91.73,91.674,2.07601933]
[1772647550308,2.0861703,91.724,91.674,2.07601933]
[1772647551221,2.0861703,91.724,91.678,3.69383402]
[1772647551520,2.0861703,91.729,91.679,2.07601933]
[1772647551725,0.2,91.73,91.679,2.07601933]
[1772647551910,2.0861703,91.719,91.679,2.07601933]
[1772647552103,2.0861703,91.719,91.675,10.90809926]
[1772647552614,2.0861703,91.719,91.675,38.17834741]
[1772647552811,2.0861703,91.719,91.675,10.90809926]
[1772647553217,10.90298523,91.718,91.675,10.90809926]
[1772647553424,2.0861703,91.717,91.675,10.90809926]
[1772647553725,2.0861703,91.717,91.676,2.07601933]
[1772647555127,2.0861703,91.717,91.675,10.90809926]
[1772647556126,2.0861703,91.717,91.655,3.69383402]
[1772647556127,2.0861703,91.709,91.658,2.07601933]
[1772647558137,2.0861703,91.707,91.651,2.07601933]
[1772647560320,2.0861703,91.705,91.653,2.07601933]
[1772647560924,2.0861703,91.713,91.653,2.07601933]
[1772647561126,0.1,91.72,91.658,2.07601933]
[1772647561309,0.1,91.72,91.663,2.07601933]
[1772647561514,2.0861703,91.719,91.663,2.07601933]
[1772647561810,2.0861703,91.718,91.663,2.07601933]
[1772647562215,2.0861703,91.718,91.664,38.18292895]
[1772647562432,2.0861703,91.718,91.665,2.07601933]
[1772647562631,2.0861703,91.716,91.665,2.07601933]
[1772647564728,2.0861703,91.716,91.667,2.07601933]
[1772647566622,2.0861703,91.714,91.667,2.07601933]
[1772647566940,2.0861703,91.714,91.669,2.07601933]
[1772647567623,2.0861703,91.714,91.668,46.08126281]
[1772647567624,2.0861703,91.712,91.668,18.80893223]
[1772647567831,2.0861703,91.712,91.669,2.07601933]
[1772647569522,2.0861703,91.71,91.671,2.07601933]
[1772647569826,2.0861703,91.71,91.672,7.9]
[1772647570028,2.0861703,91.71,91.673,2.07601933]
[1772647570554,2.0861703,91.719,91.673,2.07601933]
[1772647570722,0.1,91.72,91.673,2.07601933]
[1772647571128,2.0861703,91.719,91.673,2.07601933]
[1772647571837,12.98903666,91.719,91.675,2.07601933]
[1772647572132,2.0861703,91.719,91.675,2.07601933]
[1772647572439,0.1,91.72,91.675,2.07601933]
[1772647574137,0.1,91.72,91.677,2.07601933]
[1772647574336,2.1861703,91.72,91.677,2.07601933]
[1772647574641,0.1,91.72,91.677,2.07601933]
[1772647575742,0.1,91.72,91.679,2.07601933]
[1772647576339,2.0861703,91.719,91.679,2.07601933]
[1772647577830,2.0861703,91.717,91.669,2.07601933]
[1772647578045,2.0861703,91.717,91.67,10.90869422]
[1772647578342,2.0861703,91.717,91.67,13.1462329]
[1772647578529,2.0861703,91.717,91.671,2.23753868]
[1772647579139,13.27488287,91.72,91.671,2.23753868]
[1772647579347,2.27209855,91.719,91.671,2.23753868]
[1772647580052,2.27209855,91.717,91.673,2.23753868]
[1772647583035,2.27209855,91.715,91.675,2.23753868]
[1772647583343,2.27209855,91.715,91.674,10.90821825]
[1772647583534,2.27209855,91.715,91.675,2.23753868]
[1772647585832,0.1,91.72,91.675,2.23753868]
[1772647585833,2.2975559,91.713,91.675,2.23753868]
[1772647586056,2.2975559,91.713,91.677,2.25252062]
[1772647587046,2.2975559,91.711,91.678,10.90774231]
[1772647587738,2.2975559,91.711,91.669,2.25252062]
[1772647588056,2.2975559,91.711,91.671,2.25252062]
[1772647589257,2.2975559,91.709,91.673,2.25252062]
[1772647590842,2.2975559,91.709,91.673,10.15252062]
[1772647591040,2.2975559,91.709,91.674,2.25252062]
[1772647591763,2.2975559,91.707,91.676,2.25252062]
[1772647593261,0.1,91.72,91.676,2.25252062]
[1772647593562,11.00281359,91.72,91.676,2.25252062]
[1772647593865,11.00281359,91.72,91.66,54.54914895]
[1772647593866,2.2975559,91.719,91.678,2.25252062]
[1772647597066,10.90298523,91.718,91.68,2.25252062]
[1772647597461,13.20054113,91.718,91.68,2.25252062]
[1772647597668,2.2975559,91.717,91.68,2.25252062]
[1772647599450,2.2975559,91.715,91.666,2.25252062]
[1772647600856,2.2975559,91.713,91.668,2.25252062]
[1772647602656,2.2975559,91.711,91.67,2.25252062]
[1772647604781,2.2975559,91.709,91.672,2.25252062]
[1772647605875,2.2975559,91.709,91.673,2.25252062]
[1772647607275,2.2975559,91.707,91.674,10.90821825]
[1772647607776,2.2975559,91.707,91.674,13.16073887]
[1772647607983,2.2975559,91.707,91.675,2.25252062]
[1772647608279,2.2975559,91.707,91.649,3.69383402]
[1772647608280,3.69383402,91.705,91.634,2.32346143]
[1772647608458,4.1090742,91.67,91.619,2.32346143]
[1772647608664,4.1090742,91.67,91.565,12.22898008]
[1772647608665,4.1090742,91.64,91.601,2.32346143]
[1772647608883,4.1090742,91.64,91.601,13.24037281]
[1772647609060,4.1090742,91.66,91.602,2.32346143]
[1772647609261,38.18501183,91.659,91.604,2.32346143]
[1772647610575,10.91000338,91.659,91.604,2.32346143]
[1772647610784,10.90857523,91.671,91.607,2.32346143]
[1772647611785,10.90857523,91.671,91.586,1.92308624]
[1772647611786,4.1090742,91.65,91.594,2.32346143]
[1772647612086,4.1090742,91.64,91.594,2.32346143]
[1772647612479,8.82626593,91.63,91.586,4.24654767]
[1772647612664,8.82626593,91.63,91.586,2.32346143]
[1772647612869,8.82626593,91.64,91.581,2.32346143]
[1772647613078,8.82626593,91.65,91.581,2.32346143]
[1772647613482,0.03072625,91.649,91.581,2.32346143]
[1772647613995,0.03072625,91.648,91.582,2.32346143]
[1772647615289,0.03072625,91.648,91.584,2.32346143]
[1772647616591,8.82626593,91.64,91.584,2.32346143]
[1772647616780,0.10781119,91.639,91.584,2.32346143]
[1772647616988,0.10781119,91.638,91.586,2.32346143]
[1772647617574,38.19334562,91.639,91.586,2.32346143]
[1772647618286,0.13291819,91.638,91.586,2.32346143]
[1772647619293,0.13291819,91.638,91.588,2.32346143]
[1772647619792,0.18227035,91.659,91.588,2.32346143]
[1772647619999,0.18227035,91.659,91.59,2.32346143]
[1772647620180,0.18227035,91.669,91.595,2.32346143]
[1772647620494,38.18042979,91.67,91.595,2.32346143]
[1772647620873,0.2065221,91.669,91.595,2.32346143]
[1772647621273,0.2065221,91.669,91.594,3.69383402]
[1772647621274,10.90893223,91.668,91.597,2.32346143]
[1772647621475,10.90779296,91.678,91.608,6.30161859]
[1772647621693,38.17714874,91.678,91.613,2.32346143]
[1772647621997,0.2304953,91.677,91.613,2.32346143]
[1772647622691,10.90779296,91.678,91.613,2.32346143]
[1772647623381,10.90690952,91.685,91.618,2.32346143]
[1772647623579,10.90690952,91.685,91.624,2.32346143]
[1772647623893,38.17418333,91.685,91.624,2.32346143]
[1772647624093,10.90690952,91.685,91.624,2.32346143]
[1772647625793,10.90690952,91.685,91.618,3.69383402]
[1772647625794,0.32366599,91.694,91.628,3.69383402]
[1772647625996,0.32366599,91.689,91.629,2.32346143]
[1772647626185,136.32152508,91.695,91.6,10.91703056]
[1772647626186,2.31723759,91.669,91.6,10.91703056]
[1772647626385,2.31723759,91.669,91.603,30.98529158]
[1772647627189,2.31723759,91.691,91.608,0.28432314]
[1772647627500,2.31723759,91.691,91.61,0.28432314]
[1772647627896,2.31723759,91.689,91.613,3.69383402]
[1772647628199,2.31723759,91.689,91.614,2.26780158]
[1772647629980,2.31723759,91.687,91.619,2.26780158]
[1772647632703,2.31723759,91.685,91.621,2.26780158]
[1772647634798,2.31723759,91.685,91.62,38.20126609]
[1772647634799,2.31723759,91.683,91.623,2.26780158]
[1772647635987,2.31723759,91.683,91.625,2.26780158]
[1772647637305,2.31723759,91.681,91.627,2.26780158]
[1772647637502,2.31723759,91.681,91.628,2.26780158]
[1772647637702,38.17543247,91.682,91.628,2.26780158]
[1772647637703,10.90726642,91.682,91.628,2.26780158]
[1772647637908,10.90726642,91.682,91.63,2.26780158]
[1772647638298,10.90726642,91.682,91.629,1.46780158]
[1772647638608,13.53951982,91.682,91.629,1.46780158]
[1772647640103,10.90726642,91.682,91.63,38.19709701]
[1772647640303,10.90726642,91.682,91.631,2.60861064]
[1772647640908,10.90685845,91.686,91.634,2.60861064]
[1772647641107,13.53911185,91.686,91.634,2.60861064]
[1772647641317,13.53798939,91.695,91.634,2.60861064]
[1772647641895,2.6322534,91.694,91.638,2.60861064]
[1772647642393,2.6322534,91.702,91.643,2.60861064]
[1772647642608,2.6322534,91.704,91.645,2.60861064]
[1772647644392,2.6322534,91.704,91.647,2.60861064]
[1772647644808,10.90457823,91.705,91.647,2.60861064]
[1772647644992,10.90408189,91.709,91.647,2.60861064]
[1772647645192,2.6322534,91.712,91.653,2.60861064]
[1772647645400,2.68103756,91.718,91.653,2.60861064]
[1772647645597,0.1,91.72,91.658,2.90451644]
[1772647645786,0.1,91.72,91.66,2.90451644]
[1772647645998,2.68103756,91.719,91.66,2.90451644]
[1772647646997,2.68103756,91.717,91.664,3.69383402]
[1772647647310,2.68103756,91.717,91.666,2.6201933]
[1772647648418,0.1,91.72,91.666,2.6201933]
[1772647649094,0.1,91.72,91.675,2.6201933]
[1772647650396,0.1,91.72,91.671,92.72288945]
[1772647650397,0.2,91.73,91.683,2.6201933]
[1772647650593,2.78103756,91.75,91.693,2.6201933]
[1772647650994,0.1,91.75,91.7,2.6201933]
[1772647651299,0.1,91.75,91.704,2.6201933]
[1772647651815,0.2,91.76,91.714,2.6201933]
[1772647652023,10.89811353,91.759,91.714,2.6201933]
[1772647652319,2.88103756,91.76,91.714,2.6201933]
[1772647652917,0.2,91.76,91.714,2.6201933]
[1772647653118,2.88103756,91.76,91.716,2.6201933]
[1772647653712,0.2,91.76,91.716,2.6201933]
[1772647654020,2.68103756,91.759,91.716,2.6201933]
[1772647654711,0.2,91.76,91.716,2.6201933]
[1772647655099,0.2,91.76,91.718,2.6201933]
[1772647655805,2.68103756,91.758,91.718,2.6201933]
[1772647656214,10.89811353,91.759,91.718,2.6201933]
[1772647656215,0.2,91.76,91.718,2.6201933]
[1772647657014,0.2,91.76,91.72,2.6201933]
[1772647657218,0.2,91.76,91.723,2.6201933]
[1772647657812,2.88103756,91.76,91.723,2.6201933]